{"text_format":"1","workbook":"xlsx","n_sheets":2,"sheets":["TABELA","INSTRUKCJA"],"not_rendered":{"charts":0,"images":1,"macros":1,"external_links":0,"defined_names":3,"comments":0,"pivot_tables":0},"unopened":[],"bounds":{"document_bytes":16777216,"sheet_cells":100000,"rows_first":2000,"rows_last":500,"rows_between":2000,"halvings":0,"cell_chars":16384,"cell_head_chars":4096},"cells_cut":0,"cells_raw":0,"read":"whole","date_system":"1900"}

{"sheet":"TABELA","index":0,"n_rows":59,"n_cols":21,"rows_kept":59,"cut":false,"hidden":false,"merged":[[58,0,58,11],[53,0,53,11],[54,0,54,11],[55,0,55,10],[1,0,2,0],[1,1,1,2],[52,0,52,11],[1,4,1,7],[1,8,1,11],[1,13,2,13],[1,12,2,12],[1,14,2,14],[1,15,2,15],[1,16,2,16]]}
[null,null,null,null,null,null,null,null,null,null,null,null,null,null,null,null,null,null,null,null,"UWAGA! w przypadku działów specjalnych produkcji rolnej wymagana jest - kserokopia PIT/DS za poprzedni rok (jeżeli termin składania ofert przypadł po 30 kwietnia), \newentualnie informacja wydana przez powiatowego lekarza weterynarii lub kopia innych dokumentów uwierzytelniających prowadzenie tego rodzaju produkcji."]
["GRUPY ZWIERZĄT","OKRES PRZEBYWANIA\n W GRUPIE\n",null,"STAN POCZĄTKOWY","PRZYCHODY",null,null,null,"ROZCHODY",null,null,null,"STAN KOŃCOWY","PRZELOTOWOŚĆ","STAN ŚREDNIOROCZNY","WSPÓŁCZYNNIK PRZELICZENIA SZTUK RZECZYWISTYCH NA DJP","DUŻE JEDNOSTKI PRZELICZENIOWE INWENTARZA (DJP)"]
[null,"LICZBA","JEDNOSTKA: MISIĄCE/\nTYGODNIE/\nDNI",1,"Z URODZENIA ","Z \nPRZEKLASOWANIA","Z ZAKUPU","PRZYCHODY RAZEM","NA \nPRZEKLASOWANIE","NA SPRZEDAŻ","UPADKI ","ROZCHODY RAZEM"]
["Kury nioski do produkcji jaj konsumpcyjnych w chowie KONWENCJONALNYM \n(min 80 szt stan średnioroczny) - DZIAŁ SPECJALNY PRODUKCJI ROLNEJ",12,"MIESIĘCY",null,null,null,null,{"$f":"SUM(E4:G4)","v":0},null,null,null,{"$f":"SUM(I4:K4)","v":0},null,{"$f":"IF(D4+H4=L4+M4,(D4+M4)/2,\"BŁĄD\")","v":0},{"$f":"(N4*B4)/12","v":0},4.0000000000000001E-3,{"$f":"IF(O4>=80,P4*O4,0)","v":0},{"$f":"IF(D4+H4=L4+M4,1,0)","v":1}]
["Kury nioski do produkcji jaj wylęgowych w chowie KONWENCJONALNYM (nieśne) (min 80 szt stan średnioroczny) - DZIAŁ SPECJALNY PRODUKCJI ROLNEJ",12,"MIESIĘCY",null,null,null,null,{"$f":"SUM(E5:G5)","v":0},null,null,null,0,null,{"$f":"IF(D5+H5=M5+L5,(D5+M5)/2,\"BŁĄD\")","v":0},{"$f":"(N5*B5)/12","v":0},4.0000000000000001E-3,{"$f":"IF(O5>=80,P5*O5,0)","v":0},{"$f":"IF(D5+H5=L5+M5,1,0)","v":1}]
["Kury nioski do produkcji jaj wylęgowych w chowie KONWENCJONALNYM (mięsne)\n(min 80 szt stan średnioroczny) - DZIAŁ SPECJALNY PRODUKCJI ROLNEJ",11,"MIESIĘCY",null,null,null,null,0,null,null,null,0,null,{"$f":"IF(D6+H6=L6+M6,J6+I6+1/2*K6+1/2*M6-1/2*D6,\"BŁĄD\")","v":0},{"$f":"(N6*B6)/12","v":0},4.0000000000000001E-3,0,1]
["Brojlery kurze w chowie KONWENCJONALNYM\n(min 100 szt stan średnioroczny) - DZIAŁ SPECJALNY PRODUKCJI ROLNEJ",6,"TYGODNI",null,null,null,null,{"$f":"SUM(E7:G7)","v":0},null,null,null,0,null,0,{"$f":"(N7*B7)/52","v":0},4.0000000000000001E-3,{"$f":"IF(O7>=100,P7*O7,0)","v":0},1]
["Kapłony w chowie KONWENCJONALNYM\n(min 100 szt stan średnioroczny) - DZIAŁ SPECJALNY PRODUKCJI ROLNEJ",20,"TYGODNI",null,null,null,null,{"$f":"SUM(E8:G8)","v":0},null,null,null,0,null,0,{"$f":"(N8*B8)/52","v":0},4.0000000000000001E-3,{"$f":"IF(O8>=100,P8*O8,0)","v":0},1]
["Indyki nioski w chowie KONWENCJONALNYM\n(min 80 szt stan średnioroczny) - DZIAŁ SPECJALNY PRODUKCJI ROLNEJ",6,"MIESIĘCY",null,null,null,null,{"$f":"SUM(E9:G9)","v":0},null,null,null,0,null,0,{"$f":"(N9*B9)/12","v":0},2.4E-2,{"$f":"IF(O9>=80,P9*O9,0)","v":0},1]
["Brojlery indycze w chowie KONWENCJONALNYM (indyki)\n(min 100 szt stan średnioroczny) - DZIAŁ SPECJALNY PRODUKCJI ROLNEJ",22,"TYGODNI",null,null,null,null,0,null,null,null,0,null,0,{"$f":"(N10*B10)/52","v":0},2.4E-2,{"$f":"IF(O10>=100,P10*O10,0)","v":0},1]
["Brojlery indycze w chowie KONWENCJONALNYM (indyczki) \n(min 100 szt stan średnioroczny) - DZIAŁ SPECJALNY PRODUKCJI ROLNEJ",16,"TYGODNI",null,null,null,null,{"$f":"SUM(E11:G11)","v":0},null,null,null,0,null,0,{"$f":"(N11*B11)/52","v":0},2.4E-2,{"$f":"IF(O11>=100,P11*O11,0)","v":0},1]
["Kaczki nioski w chowie KONWENCJONALNYM\n(min 80 szt stan średnioroczny) - DZIAŁ SPECJALNY PRODUKCJI ROLNEJ",10,"MIESIĘCY",null,null,null,null,{"$f":"SUM(E12:G12)","v":0},null,null,null,0,null,0,{"$f":"(N12*B12)/12","v":0},4.0000000000000001E-3,0,1]
["Brojlery kacze w chowie KONWENCJONALNYM\n(min 100 szt stan średnioroczny) - DZIAŁ SPECJALNY PRODUKCJI ROLNEJ",7,"TYGODNI",null,null,null,null,{"$f":"SUM(E13:G13)","v":0},null,null,null,0,null,0,{"$f":"(N13*B13)/52","v":0},4.0000000000000001E-3,{"$f":"IF(O13>=100,P13*O13,0)","v":0},1]
["Kaczki piżmowe nioski w chowie KONWENCJONALNYM\n(min 80 szt stan średnioroczny) - DZIAŁ SPECJALNY PRODUKCJI ROLNEJ",12,"MIESIĘCY",null,null,null,null,0,null,null,null,0,null,{"$f":"IF(D14+H14=L14+M14,(D14+M14)/2,\"BŁĄD\")","v":0},{"$f":"(N14*B14)/12","v":0},4.0000000000000001E-3,{"$f":"IF(O14>=80,P14*O14,0)","v":0},1]
["Brojlery kacze - kaczki piżmowe w chowie KONWENCJONALNYM (kaczory)\n(min 100 szt stan średnioroczny) - DZIAŁ SPECJALNY PRODUKCJI ROLNEJ",11,"TYGODNI",null,null,null,null,0,null,null,null,0,null,{"$f":"IF(D15+H15=L15+M15,J15+I15+1/2*K15+1/2*M15-1/2*D15,\"BŁĄD\")","v":0},{"$f":"(N15*B15)/52","v":0},4.0000000000000001E-3,{"$f":"IF(O15>=100,P15*O15,0)","v":0},1]
["Brojlery kacze - kaczki piżmowe w chowie KONWENCJONALNYM (kaczki)\n(min 100 szt stan średnioroczny) - DZIAŁ SPECJALNY PRODUKCJI ROLNEJ",9,"TYGODNI",null,null,null,null,0,null,null,null,0,null,{"$f":"IF(D16+H16=L16+M16,J16+I16+1/2*K16+1/2*M16-1/2*D16,\"BŁĄD\")","v":0},0,4.0000000000000001E-3,0,1]
["Kaczki piżmowe - w chowie KONWENCJONALNYM (kaczory)\n(min 100 szt stan średnioroczny) - DZIAŁ SPECJALNY PRODUKCJI ROLNEJ",10,"TYGODNI",null,null,null,null,0,null,null,null,0,null,{"$f":"IF(D17+H17=L17+M17,J17+I17+1/2*K17+1/2*M17-1/2*D17,\"BŁĄD\")","v":0},{"$f":"(N17*B17)/52","v":0},4.0000000000000001E-3,0,{"$f":"IF(D21+H21=L21+M21,1,0)","v":1}]
["Kaczki piżmowe - w chowie KONWENCJONALNYM (kaczki)\n(min 100 szt stan średnioroczny) - DZIAŁ SPECJALNY PRODUKCJI ROLNEJ",12,"TYGODNI",null,null,null,null,0,null,null,null,0,null,{"$f":"IF(D18+H18=L18+M18,J18+I18+1/2*K18+1/2*M18-1/2*D18,\"BŁĄD\")","v":0},{"$f":"(N18*B18)/52","v":0},4.0000000000000001E-3,0,{"$f":"IF(D21+H21=L21+M21,1,0)","v":1}]
["Gęsi nioski w chowie KONWENCJONALNYM\n(min 80 szt stan średnioroczny) - DZIAŁ SPECJALNY PRODUKCJI ROLNEJ",12,"MIESIĘCY",null,null,null,null,0,null,null,null,0,null,{"$f":"IF(D19+H19=L19+M19,(D19+M19)/2,\"BŁĄD\")","v":0},{"$f":"(N19*B19)/12","v":0},8.0000000000000002E-3,{"$f":"IF(O19>=80,P19*O19,0)","v":0},1]
["Gęsi rzeźne w chowie KONWENCJONALNYM\n(min 100 szt stan średnioroczny) - DZIAŁ SPECJALNY PRODUKCJI ROLNEJ",16,"TYGODNI",null,null,null,null,0,null,null,null,0,null,{"$f":"IF(D20+H20=L20+M20,J20+I20+1/2*K20+1/2*M20-1/2*D20,\"BŁĄD\")","v":0},0,8.0000000000000002E-3,0,1]
["Przepiórki nioski w chowie KONWENCJONALNYM\n(min 80 szt stan średnioroczny) ",6,"MIESIĘCY",null,null,null,null,0,null,null,null,0,null,{"$f":"IF(B21=12,IF(D21+H21=L21+M21,(D21+M21)/2,\"BŁĄD\"),IF(D21+H21=L21+M21,J21+I21+1/2*K21+1/2*M21-1/2*D21,\"BŁĄD\"))","v":0},{"$f":"(N21*B21)/12","v":0},2.9999999999999997E-4,{"$f":"IF(O21>=80,P21*O21,0)","v":0},1]
["Przepiórki w chowie KONWENCJONALNYM\n(min 100 szt stan średnioroczny) ",6,"TYGODNI",null,null,null,null,0,null,null,null,0,null,0,0,2.9999999999999997E-4,0,1]
["Strusie w chowie KONWENCJONALNYM\n(min 3 szt stan średniroczny) ",12,"MIESIĘCY",null,null,null,null,0,null,null,null,0,null,{"$f":"IF(B23=12,IF(D23+H23=L23+M23,(D23+M23)/2,\"BŁĄD\"),IF(D23+H23=L23+M23,J23+I23+1/2*K23+1/2*M23-1/2*D23,\"BŁĄD\"))","v":0},{"$f":"(N23*B23)/12","v":0},0.2,{"$f":"IF(O23>=3,P23*O23,0)","v":0},1]
["Perlice\n(min 100 szt stan średnioroczny) ",14,"TYGODNI",null,null,null,null,0,null,null,null,0,null,0,{"$f":"(N24*B24)/52","v":0},3.0000000000000001E-3,0,1]
["Kury nioski do produkcji jaj konsumpcyjnych w chowie EKOLOGICZNYM\n(min 80 szt stan średnioroczny) - DZIAŁ SPECJALNY PRODUKCJI ROLNEJ",12,"MIESIĘCY",null,null,null,null,0,null,null,null,0,null,{"$f":"IF(D25+H25=L25+M25,(D25+M25)/2,\"BŁĄD\")","v":0},{"$f":"(N25*B25)/12","v":0},4.0000000000000001E-3,{"$f":"IF(O25>=80,P25*O25,0)","v":0},1]
["Kurczęta rzeźne w chowie EKOLOGICZNYM\n(min 100 szt stan średnioroczny) - DZIAŁ SPECJALNY PRODUKCJI ROLNEJ",12,"TYGODNI",null,null,null,null,0,null,null,null,0,null,0,{"$f":"(N26*B26)/52","v":0},4.0000000000000001E-3,{"$f":"IF(O26>=100,P26*O26,0)","v":0},1]
["Kapłony w chowie EKOLOGICZNYM\n(min 100 szt stan średnioroczny) - DZIAŁ SPECJALNY PRODUKCJI ROLNEJ",22,"TYGODNI",null,null,null,null,0,null,null,null,0,null,0,{"$f":"(N27*B27)/52","v":0},4.0000000000000001E-3,0,1]
["Gęsi rzeźne w chowie EKOLOGICZNYM\n(min 100 szt stan średnioroczny) - DZIAŁ SPECJALNY PRODUKCJI ROLNEJ",21,"TYGODNI",null,null,null,null,0,null,null,null,0,null,0,{"$f":"(N28*B28)/52","v":0},8.0000000000000002E-3,0,1]
["Indyki rzeźne w chowie EKOLOGICZNYM (indyki)\n(min 100 szt stan średnioroczny) - DZIAŁ SPECJALNY PRODUKCJI ROLNEJ",20,"TYGODNI",null,null,null,null,0,null,null,null,0,null,0,{"$f":"(N29*B29)/52","v":0},2.4E-2,0,1]
["Indyki rzeźne w chowie EKOLOGICZNYM (indyczki)\n(min 100 szt stan średnioroczny) - DZIAŁ SPECJALNY PRODUKCJI ROLNEJ",15,"TYGODNI",null,null,null,null,0,null,null,null,0,null,0,{"$f":"(N30*B30)/52","v":0},2.4E-2,0,1]
["Kaczki rzeźne w chowie EKOLOGICZNYM\n(min 100 szt stan średnioroczny) - DZIAŁ SPECJALNY PRODUKCJI ROLNEJ",7,"TYGODNI",null,null,null,null,0,null,null,null,0,null,0,0,4.0000000000000001E-3,0,1]
["Strusie w chowie EKOLOGICZNYM\n(min 3 szt stan średniroczny)",12,"MIESIĘCY",null,null,null,null,0,null,null,null,0,null,{"$f":"IF(D32+H32=L32+M32,(D32+M32)/2,\"BŁĄD\")","v":0},{"$f":"(N32*B32)/12","v":0},0.2,{"$f":"IF(O32>=3,P32*O32,0)","v":0},1]
["Ogiery, klacze, wałachy",12,"MIESIĘCY",null,null,null,null,0,null,null,null,0,null,0,{"$f":"(N33*B33)/12","v":0},1.2,{"$f":"P33*O33","v":0},1]
["Małe konie: hucuły, koniki polskie, kuce",12,"MIESIĘCY",null,null,null,null,0,null,null,null,0,null,0,0,0.6,0,1]
["Źrebaki powyżej 2 lat do 3 lat",12,"MIESIĘCY",null,null,null,null,0,null,null,null,0,null,0,0,1,0,1]
["Źrebaki od 1 roku do 2 lat",12,"MIESIĘCY",null,null,null,null,0,null,null,null,0,null,0,0,0.8,0,1]
["Źrebaki od 1/2 do 1 roku",6,"MIESIĘCY",null,null,null,null,0,null,null,null,0,null,{"$f":"IF(D37+H37=L37+M37,J37+I37+1/2*K37+1/2*M37-1/2*D37,\"BŁĄD\")","v":0},0,0.5,0,1]
["Źrebięta do 1/2 roku",6,"MIESIĘCY",null,null,null,null,0,null,null,null,0,null,0,0,0.3,0,1]
["Króliki\n(min 50 szt stan średniroczny)  - DZIAŁ SPECJALNY PRODUKCJI ROLNEJ POWYŻEJ 50 SAMIC STADA PODSTAWOWEGO",10,"MIESIĘCY",null,null,null,null,0,null,null,null,0,null,0,0,7.0000000000000001E-3,{"$f":"IF(O39>=50,P39*O39,0)","v":0},1]
["Brojlery królicze\n(min 50 szt stan średniroczny) - DZIAŁ SPECJALNY PRODUKCJI ROLNEJ POWYŻEJ 50 SAMIC STADA PODSTAWOWEGO",7,"MIESIĘCY",null,null,null,null,0,null,null,null,0,null,0,0,7.0000000000000001E-3,{"$f":"IF(O40>=50,P40*O40,0)","v":0},1]
["Lisy i Jenoty\n(min 50 szt stan średniroczny) - DZIAŁ SPECJALNY PRODUKCJI ROLNEJ",12,"MIESIĘCY",null,null,null,null,0,null,null,null,0,null,{"$f":"IF(D41+H41=L41+M41,(D41+M41)/2,\"BŁĄD\")","v":0},{"$f":"(N41*B41)/12","v":0},2.5000000000000001E-2,0,1]
["Norki\n(min 50 szt stan średniroczny) - DZIAŁ SPECJALNY PRODUKCJI ROLNEJ",12,"MIESIĘCY",null,null,null,null,0,null,null,null,0,null,0,0,2.5000000000000001E-3,0,1]
["Tchórze\n(min 50 szt stan średniroczny) - DZIAŁ SPECJALNY PRODUKCJI ROLNEJ",12,"MIESIĘCY",null,null,null,null,0,null,null,null,0,null,0,0,2.5000000000000001E-3,0,1]
["Szynszyle\n(min 50 szt stan średniroczny) - DZIAŁ SPECJALNY PRODUKCJI ROLNEJ",8,"MIESIĘCY",null,null,null,null,0,null,null,null,0,null,{"$f":"IF(D44+H44=L44+M44,J44+I44+1/2*K44+1/2*M44-1/2*D44,\"BŁĄD\")","v":0},0,1E-3,0,1]
["Nutrie\n(min 50 szt stan średniroczny) - DZIAŁ SPECJALNY PRODUKCJI ROLNEJ POWYŻEJ 50 SAMIC STADA PODSTAWOWEGO",12,"MIESIĘCY",null,null,null,null,0,null,null,null,0,null,{"$f":"IF(D45+H45=L45+M45,(D45+M45)/2,\"BŁĄD\")","v":0},{"$f":"(N45*B45)/12","v":0},7.0000000000000001E-3,0,1]
["Pnie pszczele\n(powyżej 80 rodzin, stan średnioroczny) - DZIAŁ SPECJALNY PRODUKCJI ROLNEJ",12,"MIESIĘCY",null,null,null,null,0,null,null,null,0,null,0,0,{"$f":"4/500","v":8.0000000000000002E-3},{"$f":"IF(O46>=80,P46*O46,0)","v":0},1]
["Jelenie",12,"MIESIĘCY",null,null,null,null,0,null,null,null,0,null,0,{"$f":"(N47*B47)/12","v":0},0.28999999999999998,0,1]
["Daniele",12,"MIESIĘCY",null,null,null,null,0,null,null,null,0,null,0,0,0.12,0,1]
["Osły",12,"MIESIĘCY",null,null,null,null,0,null,null,null,0,null,0,0,0.5,0,1]
["Inne zwierzęta (CO NAJMNIEJ 300 KG) wymienić jakie:\n(podać w kilogramach)",20,"TYGODNI",null,null,null,null,0,null,null,null,0,null,{"$f":"IF(AND(C50=\"miesięcy\",B50=12),(D50/500)+(M50/500)/2,IF(AND(C50=\"miesięcy\",B50>12),\"BŁĄD\",(J50/500)+(I50/500)+1/2*(K50/500)+1/2*(M50/500)-1/2*(D50/500)))","v":0},{"$f":"IF(C50=\"MIESIĘCY\",(N50*B50)/12,(N50*B50)/52)","v":0},1,{"$f":"IF(O50>=0.6,P50*O50,0)","v":0}]
["Razem",null,null,null,null,null,null,null,null,null,null,null,null,null,null,null,{"$f":"SUM(Q4:Q50)","v":0}]
[null,null,null,"a",null,null,null,null,null,null,null,null,1,null,1]
["Jestem świadomy(a) odpowiedzialności karnej za złożenie fałszywego oświadczenia oraz regulacji zawartych w § 16 i § 17 rozporządzeniu Ministra Rolnictwa i Rozwoju Wsi z dnia 14.01.2009 r. w sprawie szczegółowego trybu przeprowadzania przetargów na dzierżawę nieruchomości Zasobu Własności Rolnej Skarbu Państwa (Dz.U.2013.1142), iż komisja przetargowa może przyznać zero pkt za dane kryterium, m.in. jeżeli dane wymagane przez organizatora przetargu, określone w ogłoszeniu o przetargu są niekompletne, nieczytelne lub budzą inne wątpliwości, zaś złożenie wyjaśnień mogłoby prowadzić do uznania jej za nową ofertę.",null,null,null,null,null,null,null,null,null,null,null,1,{"$f":"(D50/500)+(M50/500)/2","v":0},1,{"$f":"IF(AND(C50=\"miesięcy\",B50=12),(D50/500)+(M50/500)/2,(J50/500)+(I50/500)+1/2*(K50/500)+1/2*(M50/500)-1/2*(D50/500))","v":0}]
["a",null,null,null,null,null,null,null,null,null,null,null,1,{"$f":"(J50/500)+(I50/500)+1/2*(K50/500)+1/2*(M50/500)-1/2*(D50/500)","v":0},1]
["miejscowość: …………………………………………… data: …………………………… r.           ………………………………………………………………….",null,null,null,null,null,null,null,null,null,null,null,1,null,1]
["(czytelny podpis)",null,null,null,null,null,null,null,null,null,null,null,1,null,1]
["Do oświadczenia załączam (wymienić dokument(y) zgodnie z ogłoszeniem przetargu): ……………………………………………………………………………………",null,null,null,null,null,null,null,null,null,null,null,null,null,1]
[]
[{"$f":"IF(O4>=80,U1,IF(O5>=80,U1,IF(O6>=80,U1,IF(O7>=100,U1,IF(O8>=100,U1,IF(O9>=80,U1,IF(O10>=100,U1,IF(O11>=100,U1,IF(O12>=80,U1,IF(O13>=100,U1,IF(O14>=80,U1,IF(O15>=100,U1,IF(O16>=100,U1,IF(O21>=100,U1,IF(O21>=100,U1,IF(O19>=80,U1,IF(O20>=100,U1,IF(O21>=80,U1,IF(O22>=100,U1,IF(O23>=80,U1,IF(O24>=100,U1,IF(O25>=80,U1,IF(O26>=100,U1,IF(O27>=100,U1,IF(O28>=100,U1,IF(O29>=100,U1,IF(O30>=100,U1,IF(O31>=100,U1,IF(O39>=100,U1,IF(O40>=50,U1,IF(O41>=50,U1,IF(O42>=50,U1,IF(O43>=50,U1,IF(O44>=50,U1,IF(O45>=500,U1,IF(O46>=80,U1,))))))))))))))))))))))))))))))))))))","v":0},null,null,null,null,null,null,null,null,null,null,null,null,null,1]

{"sheet":"INSTRUKCJA","index":1,"n_rows":0,"n_cols":0,"rows_kept":0,"cut":false,"hidden":false,"merged":[]}